[Event "BSV-SCK IM 2022"]
[Site "Berlin"]
[Date "2022.04.10"]
[Round "4.5"]
[White "Ermitsch, Magnus"]
[Black "Mirzoev, Emil"]
[Result "0-1"]
[ECO "B13"]
[WhiteElo "2127"]
[BlackElo "2460"]
[Annotator "TA"]
[PlyCount "120"]
[EventDate "2022.04.08"]
[EventType "tourn"]
[EventCountry "GER"]
[SourceTitle "playchess.com"]
[Source "ChessBase"]
[SourceQuality "1"]
[TimeControl "5400+30"]

{[%evp 11,120,16,12,12,17,2,0,7,5,5,0,0,-5,-12,-22,-18,12,6,9,8,11,17,17,0,0,-106,-37,-33,-27,-55,-62,-62,-61,-68,-62,-62,-69,-70,-58,-53,-64,-68,-57,-64,-59,-91,-68,-95,-97,-125,-96,-139,-31,-31,0,0,0,-2,0,0,6,10,0,5,12,7,95,72,91,26,12,29,17,0,0,0,0,0,0,0,0,0,0,0,0,0,0,0,0,-29987,-12847,-12841,-12841,-12841,0,-12841,-12843,-12843,-12843,-12842,-12843,-29991,-29992,-29992,-29992,-29992,-12841,-29996,-29997,-29998,-29999]} 1. e4 {[%emt 0:00:03]} c6 {[%emt 0:13:44]} 2. d4 {[%emt 0:01:21]} d5 {[%emt 0:00:14]} 3. exd5 {[%emt 0:00:12]} cxd5 {[%emt 0:00:03]} 4. Bd3 {[%emt 0:00:14]} Nc6 {[%emt 1:18:29]} 5. c3 {[%emt 0:00:07]} Qc7 {[%emt 0:00:00]} 6. Ne2 {[%emt 0:01:35]} Bg4 {[%emt 0:00:00]} 7. O-O {[%emt 0:02:36] B13: Caro-Kann: Exchange Variation and Panov-Botvinnik Attack.} e6 {[%emt 0:00:00]} 8. f3 {[%emt 0:02:31]} Bh5 {[%emt 0:00:00]} 9. Bf4 {[%emt 0:15:43] The position is equal. 9.Bf4 has become a bit dusty these days.} Bd6 {[%emt 0:00:00]} 10. Bxd6 {[%emt 0:01:26]} Qxd6 {[%emt 0:00:00]} 11. Ng3 {[%emt 0:00:52]} Bg6 {[%emt 0:00:00]} 12. f4 {[%emt 0:00:43]} Bxd3 {[%emt 0:00:00]} 13. Qxd3 {[%emt 0:00:07]} f5 {[%emt 0:00:00] [#]} 14. Qe3 $146 {[%emt 0:06:36]} ({Predecessor:} 14. Qe2 Kf7 15. Nd2 Nf6 16. Nf3 Ne4 17. Ne5+ Nxe5 18. fxe5 Nxg3 19. hxg3 Qe7 20. g4 {½-½ (33) Gonzalez Garcia,Z (2076)-Fernandez Vazquez,J (1957) Tenerife 2018}) 14... g6 {[%emt 0:00:00]} 15. Re1 {[%emt 0:08:32]} Kf7 {[%emt 0:00:00]} 16. Nd2 {[%emt 0:03:19]} Nf6 {[%emt 0:00:00]} 17. Rad1 {[%emt 0:07:55]} Rhe8 {[%emt 0:00:00]} 18. c4 {[%emt 0:03:16] [#]} (18. Nh1 $11) 18... dxc4 {[%emt 0:00:00]} (18... Ng4 $1 $17 {[%cal Rg4e3]} 19. Qc3 Qxf4) 19. Nxc4 $15 {[%emt 0:01:51]} Qb4 {[%emt 0:00:00]} 20. Qc3 {[%emt 0:02:23]} Qxc3 {[%emt 0:00:00]} 21. bxc3 {[%emt 0:00:07] Threatens to win with Nd6+.} Red8 {[%emt 0:00:00] Prevents Nd6+.} 22. Ne5+ {[%emt 0:11:42]} Nxe5 {[%emt 0:00:00]} 23. fxe5 {[%emt 0:00:08]} Nd5 {[%emt 0:00:00]} 24. c4 {[%emt 0:01:37]} Nb6 {[%emt 0:00:00]} 25. Rb1 {[%emt 0:00:29]} Rab8 {[%emt 0:00:00]} 26. c5 {[%emt 0:00:39]} Nd5 {[%emt 0:00:00]} 27. Rec1 {[%emt 0:02:22]} b5 {[%emt 0:00:00]} 28. a3 {[%emt 0:05:01]} a5 {[%emt 0:00:00]} 29. Ne2 {[%emt 0:01:01]} b4 {[%emt 0:00:00] &Nero is more active.} 30. axb4 {[%emt 0:05:27]} axb4 {[%emt 0:00:00]} 31. Rb3 {[%emt 0:02:25]} Rb5 {[%emt 0:00:00]} (31... Ra8 $17 {Strongly threatening ...Ra2.} 32. Rcb1 Ke7) 32. Ra1 {[%emt 0:01:43]} Rdb8 {[%emt 0:00:00]} 33. Kf2 {[%emt 0:01:32]} g5 {[%emt 0:00:00]} 34. g3 {[%emt 0:03:03]} R5b7 {[%emt 0:00:00]} 35. Ra6 {[%emt 0:02:01]} Ke7 {[%emt 0:00:00]} 36. Nc1 {[%emt 0:02:21]} h5 {[%emt 0:00:00]} 37. Nd3 {[%emt 0:00:57]} Kf7 {[%emt 0:00:00]} 38. Nb2 {[%emt 0:01:28]} Ne7 {[%emt 0:02:38]} (38... Rd8 $11) 39. Nc4 $16 {[%emt 0:02:54] And now Nd6+ would win.} Rc7 {[%emt 0:00:49]} 40. Nd6+ {[%emt 0:00:23]} ({White should play} 40. Ke3 $16) 40... Kg6 $1 $11 {[%emt 0:00:09]} 41. Rb6 {[%emt 0:00:55]} Ra8 {[%emt 0:00:16]} 42. Nb5 {[%emt 0:00:00]} Rc6 {[%emt 0:00:00]} (42... Ra2+ 43. Ke1 Rc6 44. Rxb4 $14) 43. Rxb4 {[%emt 0:00:00] Hoping for Rb2.} Rxb6 {[%emt 0:00:00]} 44. cxb6 {[%emt 0:00:00][%mdl 4096] Endgame KRN-KRN} Nd5 $1 {[%emt 0:00:00][%csl LRb4,LRb6]} 45. Rc4 {[%emt 0:00:00]} (45. b7 Rb8 46. Rb1 Rxb7 $15) 45... Ra2+ {[%emt 0:00:00]} 46. Kg1 {[%emt 0:00:00]} Rb2 {[%emt 0:00:00]} 47. Nc7 {[%emt 0:00:00] aiming for Nxd5.} Ne3 {[%emt 0:00:00]} 48. Rc6 {[%emt 0:00:00]} f4 {[%emt 0:00:00]} 49. gxf4 {[%emt 0:00:00]} gxf4 {[%emt 0:00:00][%cal Bg5f4,Bf4f3][%mdl 32]} 50. h3 $2 {[%emt 0:00:00][%mdl 8192]} (50. Nxe6 f3 51. Nf4+ (51. Nc5+ $2 Kg5 $19) 51... Kf5 $19) (50. Rxe6+ $11 Kg5 51. Rf6 Rb1+ 52. Kf2 Ng4+ 53. Kf3 Nxf6 54. exf6 Kxf6 55. Kxf4) 50... f3 {[%emt 0:00:00]} 51. Rxe6+ {[%emt 0:00:00]} Kg5 {[%emt 0:00:00]} 52. Rf6 {[%emt 0:00:00] [#]} Rg2+ $1 {[%emt 0:00:00]} 53. Kh1 {[%emt 0:00:00]} f2 {[%emt 0:00:00]} 54. Rxf2 {[%emt 0:01:44]} Rxf2 {[%emt 0:00:00]} 55. b7 {[%emt 0:00:58]} Rb2 {[%emt 0:00:00] ( -> ...Kf4)} 56. Ne6+ {[%emt 0:01:06]} Kh4 {[%emt 0:00:00]} 57. Nf4 {[%emt 0:00:17]} Rxb7 {[%emt 0:00:00]} 58. e6 {[%emt 0:00:09]} Kg5 {[%emt 0:00:00]} (58... Rb1+ $142 59. Kh2 Rb2+ 60. Kh1 Kg3 61. Nxh5+ Kf3 62. Nf6 Rb1+ 63. Kh2 Nf1+ 64. Kh1 Ng3+ 65. Kh2 Rh1#) 59. d5 {[%emt 0:00:15]} Kxf4 {[%emt 0:00:00]} 60. d6 {[%emt 0:00:04]} Kg3 {[%emt 0:00:00] Weighted Error Value: White=0.47/Black=0.16 (very precise)} 0-1

[Event "BSV-SCK IM 2022"]
[Site "Berlin"]
[Date "2022.04.11"]
[Round "5.1"]
[White "Mirzoev, Emil"]
[Black "Vogel, Constantin"]
[Result "1-0"]
[ECO "A28"]
[WhiteElo "2460"]
[BlackElo "2209"]
[Annotator "TA"]
[PlyCount "75"]
[EventDate "2022.04.08"]
[EventType "tourn"]
[EventCountry "GER"]
[SourceTitle "playchess.com"]
[Source "ChessBase"]
[SourceQuality "1"]
[TimeControl "5400+30"]

{[%evp 9,75,0,0,0,0,0,12,5,15,18,12,8,20,15,26,38,89,81,90,100,79,90,126,85,104,115,130,142,203,54,42,48,44,41,45,51,97,91,102,52,81,69,114,130,122,132,175,172,175,171,209,210,266,270,270,270,281,300,292,287,316,310,910,745,791,797,602,503]} 1. c4 {[%emt 0:00:02]} Nf6 {[%emt 0:00:07]} 2. Nc3 {[%emt 0:00:08]} e5 {[%emt 0:00:18]} 3. Nf3 {[%emt 0:00:19]} Nc6 {[%emt 0:00:09]} 4. e3 {[%emt 0:00:57]} Bb4 {[%emt 0:01:04]} 5. Qc2 {[%emt 0:00:10]} O-O {[%emt 0:01:19]} 6. Be2 {[%emt 0:00:56] A28: English Opening: Four Knights Variation.} Re8 {[%emt 0:01:13]} 7. O-O {[%emt 0:00:35]} h6 {[%emt 0:09:56]} 8. d3 {[%emt 0:11:37] [#] The position is equal.} d5 $146 {[%emt 0:08:11]} ({Predecessor:} 8... Bxc3 9. Qxc3 a5 10. b3 d6 11. Bb2 Qe7 12. a3 b6 13. Nd2 Bb7 14. Rae1 Qd7 {½-½ (43) Fabian,J (2250)-Obona,J (2105) Slovakia 2002}) 9. cxd5 {[%emt 0:01:18]} Nxd5 {[%emt 0:00:22]} 10. a3 {[%emt 0:00:11] Black must now prevent Nxd5.} Bf8 {[%emt 0:07:41]} 11. b4 {[%emt 0:01:05][%cal Bb2b4,Bb4b5][%mdl 32]} a5 {[%emt 0:09:40]} 12. b5 {[%emt 0:02:19]} Na7 {[%emt 0:01:57]} ({Black should try} 12... Nxc3 $14 13. Qxc3 Na7) 13. Nxd5 $16 {[%emt 0:08:59]} Qxd5 {[%emt 0:00:07]} 14. a4 {[%emt 0:01:13]} Qc5 {[%emt 0:18:53]} 15. Qd2 {[%emt 0:03:36]} Bd7 {[%emt 0:07:29]} 16. Bb2 {[%emt 0:02:09]} c6 {[%emt 0:01:02]} 17. Qxa5 {[%emt 0:16:04]} Qc2 {[%emt 0:13:43]} 18. Qc3 {[%emt 0:03:53]} ({Don't play} 18. Qd2 Qxd2 19. Nxd2 cxb5 $14) 18... Qxe2 {[%emt 0:04:37] [#]} (18... Qxc3 $16 19. Bxc3 f6) 19. Rfe1 {[%emt 0:01:39]} (19. Rae1 $1 $18 {[%cal Re1e2]} Qxf1+ 20. Kxf1) 19... Nxb5 $1 $14 {[%emt 0:03:08]} 20. axb5 {[%emt 0:02:38]} Rxa1 {[%emt 0:00:09]} 21. Bxa1 {[%emt 0:01:55]} Qa2 {[%emt 0:00:12]} 22. Nxe5 {[%emt 0:00:31]} Qd5 {[%emt 0:01:50]} (22... Be6 $1 $14 {feels stronger.}) 23. bxc6 {[%emt 0:01:13]} bxc6 {[%emt 0:00:00]} 24. Qd4 {[%emt 0:02:41]} (24. Nxd7 $16 {[%cal Od7f6] Strongly threatening Nf6+!} Qxd7 25. Qc2) 24... Qxd4 {[%emt 0:03:11]} 25. Bxd4 {[%emt 0:00:13]} c5 {[%emt 0:00:20]} 26. Nxd7 {[%emt 0:01:56]} cxd4 $16 {[%emt 0:00:06][%mdl 4096] Endgame KRB-KRN} 27. e4 {[%emt 0:00:17]} Bb4 {[%emt 0:01:50]} 28. Rb1 {[%emt 0:03:28]} Ra8 {[%emt 0:01:03]} 29. g3 {[%emt 0:05:41]} Bd6 {[%emt 0:01:52] [#]} 30. Rb6 $1 {[%emt 0:01:04]} Ba3 {[%emt 0:02:02]} 31. Rb8+ {[%emt 0:00:47]} Rxb8 {[%emt 0:00:04]} 32. Nxb8 $18 {[%emt 0:00:04] KB-KN} Kf8 {[%emt 0:00:31]} 33. Kg2 {[%emt 0:00:11]} f6 {[%emt 0:02:03]} 34. Kf3 {[%emt 0:00:52]} Bb2 {[%emt 0:00:44]} 35. e5 {[%emt 0:02:27]} f5 {[%emt 0:00:35]} (35... Kf7 36. exf6 gxf6) 36. g4 {[%emt 0:00:00] White is clearly winning.} fxg4+ {[%emt 0:00:22]} 37. Kxg4 {[%emt 0:00:01]} Kf7 {[%emt 0:00:19]} 38. Kf5 {[%emt 0:00:13] Weighted Error Value: White=0.12 (very precise) /Black=0.22 (precise)} 1-0

[Event "BSV-SCK IM 2022"]
[Site "Berlin"]
[Date "2022.04.11"]
[Round "5.2"]
[White "Glantz, Robert"]
[Black "Ermitsch, Magnus"]
[Result "1/2-1/2"]
[ECO "D04"]
[WhiteElo "2318"]
[BlackElo "2127"]
[Annotator "RC"]
[PlyCount "133"]
[EventDate "2022.04.08"]
[EventType "tourn"]
[EventCountry "GER"]
[SourceTitle "playchess.com"]
[Source "ChessBase"]
[SourceQuality "1"]
[TimeControl "5400+30"]

1. d4 {[%emt 0:04:02]} d5 {[%emt 0:00:27]} 2. Nf3 {[%emt 0:00:17]} c5 {[%emt 0:01:01]} 3. e3 {[%emt 0:06:23]} Nf6 {[%emt 0:00:16]} 4. b3 {[%emt 0:00:52]} Nc6 {[%emt 0:00:44]} 5. Bb2 {[%emt 0:00:47]} Bg4 {[%emt 0:03:49]} 6. Be2 {[%emt 0:05:28]} cxd4 {[%emt 0:02:24]} 7. Nxd4 {[%emt 0:00:38]} Bxe2 {[%emt 0:03:34]} 8. Qxe2 {[%emt 0:00:12]} e6 {[%emt 0:00:51]} 9. Nxc6 {[%emt 0:07:18]} bxc6 {[%emt 0:00:05]} 10. O-O {[%emt 0:00:19]} Be7 {[%emt 0:03:54]} 11. c4 {[%emt 0:00:37]} O-O {[%emt 0:01:38]} 12. Nc3 {[%emt 0:07:08]} Qa5 {[%emt 0:04:11]} 13. Na4 {[%emt 0:01:44]} Ne4 {[%emt 0:08:18]} 14. Rac1 {[%emt 0:03:50]} Bf6 {[%emt 0:04:16]} 15. Ba3 {[%emt 0:12:49]} Rfd8 {[%emt 0:02:27]} 16. Rfd1 {[%emt 0:21:52]} Rab8 {[%emt 0:31:18]} 17. f3 {[%emt 0:04:05]} Nd6 {[%emt 0:01:22]} 18. Bxd6 {[%emt 0:06:11]} Rxd6 {[%emt 0:00:15]} 19. Qd2 {[%emt 0:04:06]} Qa6 {[%emt 0:01:09]} 20. Nc5 {[%emt 0:02:57]} Qb6 {[%emt 0:05:04]} 21. Ne4 {[%emt 0:01:03]} Rdd8 {[%emt 0:00:41]} 22. Nxf6+ {[%emt 0:00:27]} gxf6 {[%emt 0:00:02]} 23. cxd5 {[%emt 0:02:36]} Rxd5 {[%emt 0:01:27]} 24. Qc3 {[%emt 0:00:34]} Kg7 {[%emt 0:02:15]} 25. Kf2 {[%emt 0:01:15]} Rbd8 {[%emt 0:00:37]} 26. Rxd5 {[%emt 0:00:19]} Rxd5 {[%emt 0:03:12]} 27. Rc2 {[%emt 0:01:37]} Qa6 {[%emt 0:06:05]} 28. a4 {[%emt 0:00:47]} Rd1 {[%emt 0:02:26]} 29. Qc4 {[%emt 0:00:48]} Qa5 {[%emt 0:02:56]} 30. Qg4+ {[%emt 0:00:54]} Kh8 {[%emt 0:01:12]} 31. Kg3 {[%emt 0:00:49]} Rd5 {[%emt 0:01:46]} 32. h4 {[%emt 0:01:03]} Qe1+ {[%emt 0:05:09]} 33. Kh2 {[%emt 0:00:29]} c5 {[%emt 0:00:36]} 34. Qf4 {[%emt 0:01:11]} Rf5 {[%emt 0:00:43]} 35. Qb8+ {[%emt 0:00:33]} Kg7 {[%emt 0:00:05]} 36. Qg3+ {[%emt 0:00:10]} Qxg3+ {[%emt 0:00:05]} 37. Kxg3 {[%emt 0:00:05]} Re5 {[%emt 0:01:16]} 38. Kf2 {[%emt 0:01:01]} f5 {[%emt 0:01:13]} 39. Rd2 {[%emt 0:01:32]} Rd5 {[%emt 0:00:36]} 40. Ke2 {[%emt 0:00:47]} Kf6 {[%emt 0:00:25]} 41. Rc2 {[%emt 0:00:00]} Ke5 {[%emt 0:00:00]} 42. Rc4 {[%emt 0:00:00]} Kd6 {[%emt 0:00:00]} 43. g4 {[%emt 0:00:00]} a5 {[%emt 0:00:00]} 44. gxf5 {[%emt 0:00:00]} Rxf5 {[%emt 0:00:00]} 45. Rg4 {[%emt 0:00:00]} Rh5 {[%emt 0:00:00]} 46. Kd3 {[%emt 0:00:00]} f5 {[%emt 0:00:00]} 47. Rc4 {[%emt 0:00:00]} e5 {[%emt 0:00:00]} 48. Ke2 {[%emt 0:00:00]} Rh6 {[%emt 0:00:00]} 49. Kf2 {[%emt 0:00:00]} Kd5 {[%emt 0:00:00]} 50. e4+ {[%emt 0:01:40]} fxe4 {[%emt 0:00:00]} 51. Rxe4 {[%emt 0:00:05]} Rb6 {[%emt 0:00:00]} 52. Re3 {[%emt 0:00:27]} Rb4 {[%emt 0:00:00]} 53. Kg3 {[%emt 0:00:11]} c4 {[%emt 0:01:25]} 54. bxc4+ {[%emt 0:00:06]} Rxc4 {[%emt 0:00:04]} 55. Ra3 {[%emt 0:00:36]} Kc5 {[%emt 0:01:01]} 56. h5 {[%emt 0:02:54]} e4 {[%emt 0:00:36]} 57. fxe4 {[%emt 0:00:47]} Rxe4 {[%emt 0:00:05]} 58. Rf3 {[%emt 0:01:15]} Rxa4 {[%emt 0:01:00]} 59. Rf7 {[%emt 0:00:41]} Rd4 {[%emt 0:00:14]} 60. Rxh7 {[%emt 0:00:14]} a4 {[%emt 0:00:16]} 61. Ra7 {[%emt 0:00:47]} Kb4 {[%emt 0:00:11]} 62. h6 {[%emt 0:00:33]} a3 {[%emt 0:00:11]} 63. h7 {[%emt 0:00:30]} Rd8 {[%emt 0:00:04]} 64. Kg4 {[%emt 0:00:41]} Kb3 {[%emt 0:00:05]} 65. Kg5 {[%emt 0:00:19]} a2 {[%emt 0:00:06]} 66. Kg6 {[%emt 0:00:38]} Kb2 {[%emt 0:01:10]} 67. Rxa2+ {[%emt 0:00:18]} 1/2-1/2

[Event "BSV-SCK IM 2022"]
[Site "Berlin"]
[Date "2022.04.11"]
[Round "5.3"]
[White "Eilenberg, Jonas"]
[Black "Glek, Igor"]
[Result "0-1"]
[ECO "A90"]
[WhiteElo "2135"]
[BlackElo "2476"]
[Annotator "TA"]
[PlyCount "96"]
[EventDate "2022.04.08"]
[EventType "tourn"]
[EventCountry "GER"]
[SourceTitle "playchess.com"]
[Source "ChessBase"]
[SourceQuality "1"]
[TimeControl "5400+30"]

{[%evp 14,96,21,12,17,11,10,18,50,36,48,22,28,25,35,21,26,27,35,0,45,-31,0,0,0,-23,30,0,0,-22,0,-101,-93,-89,-96,-166,-47,-47,-70,-42,0,0,0,-29,-38,-31,-30,-30,-32,-32,-30,-104,-89,-119,-125,-122,-119,-119,-116,-109,-106,-133,-122,-162,-104,-382,-375,-417,-412,-375,-340,-658,-602,-617,-602,-818,-816,-854,-851,-835,-820,-610,-610,-1603,-1574]} 1. d4 {[%emt 0:00:04]} f5 {[%emt 0:09:34]} 2. Nf3 {[%emt 0:00:18]} Nf6 {[%emt 0:00:18]} 3. g3 {[%emt 0:00:11]} e6 {[%emt 0:00:51]} 4. Bg2 {[%emt 0:00:15]} d5 {[%emt 0:00:06]} 5. O-O {[%emt 0:01:48]} Bd6 {[%emt 0:00:14]} 6. c4 {[%emt 0:01:35]} c6 {[%emt 0:00:05] 6...0-0 might become the main line.} 7. Nc3 {[%emt 0:01:20]} O-O {[%emt 0:00:52]} 8. Rb1 {[%emt 0:03:16]} Nbd7 {[%emt 0:05:50] A90: Dutch Defence: Miscellaneous and Modern Stonewall (with ...Bd6).} 9. Qc2 {[%emt 0:09:22]} Qe8 {[%emt 0:11:37]} 10. b4 {[%emt 0:08:52]} a6 {[%emt 0:21:14] The position is equal.} 11. a4 {[%emt 0:04:08]} Ne4 {[%emt 0:03:20]} 12. b5 {[%emt 0:05:25]} axb5 {[%emt 0:00:54]} 13. axb5 {[%emt 0:00:55]} Ndf6 {[%emt 0:00:52] [#]} 14. Ne5 $146 {[%emt 0:12:24]} ({Predecessor:} 14. Bf4 Be7 15. Ne5 g5 16. Nxe4 Nxe4 17. Bc1 Nd6 18. Bd2 Nf7 19. Ra1 Rxa1 20. Rxa1 Nxe5 21. dxe5 dxc4 22. bxc6 bxc6 23. Qxc4 {1-0 (29) Lundvik,J (2204)-Wahlund,M (2023) Stockholm 2016}) 14... c5 {[%emt 0:04:47]} 15. e3 {[%emt 0:09:12]} b6 {[%emt 0:04:49]} 16. Bb2 {[%emt 0:19:00]} Bb7 {[%emt 0:03:40] [#]} 17. cxd5 {[%emt 0:05:41]} (17. dxc5 $1 $14 Nxc5 (17... bxc5 18. Nxe4) 18. Ne2 (18. f4 Bxe5 19. fxe5 Ng4 $15)) 17... exd5 {[%emt 0:07:34]} 18. f3 {[%emt 0:02:13]} Nxc3 {[%emt 0:00:46]} 19. Bxc3 {[%emt 0:00:04]} g6 {[%emt 0:03:32]} (19... Qe6 $142) 20. Qb2 {[%emt 0:03:59]} c4 {[%emt 0:00:12]} 21. f4 {[%emt 0:02:34]} Ra3 {[%emt 0:03:03]} 22. Ra1 {[%emt 0:03:19]} (22. Bb4 $11 Bxb4 23. Qxb4 Rxe3 24. Nxc4) 22... Rb3 $17 {[%emt 0:01:12]} 23. Qd2 {[%emt 0:00:17]} Qxb5 {[%emt 0:00:38]} 24. h3 {[%emt 0:01:05]} (24. Ra7 $17 Bc6 25. Rfa1) 24... Ra8 {[%emt 0:02:17]} (24... Ne4 $19 25. Bxe4 dxe4) 25. Rxa8+ $15 {[%emt 0:01:23]} Bxa8 {[%emt 0:00:02]} 26. g4 $1 {[%emt 0:00:17]} Bb4 {[%emt 0:00:26]} 27. Bxb4 {[%emt 0:00:12]} Qxb4 {[%emt 0:00:02]} 28. Qxb4 {[%emt 0:00:21]} Rxb4 {[%emt 0:00:02]} 29. Ra1 $1 {[%emt 0:00:01]} Bb7 {[%emt 0:00:25]} 30. Ra7 {[%emt 0:00:15] [#] And now g5 would win.} c3 $1 {[%emt 0:00:14][%cal Bc4c3,Bc3c2][%mdl 32]} 31. Rxb7 {[%emt 0:00:33]} c2 {[%emt 0:00:10]} 32. Rb8+ {[%emt 0:02:31]} (32. Nd3 $11 {remains equal.} Rb3 33. Rc7 (33. Rb8+ Kf7 $17) 33... Rxd3 34. Rxc2) 32... Kg7 $17 {[%emt 0:00:07]} 33. Rb7+ {[%emt 0:02:11]} Kf8 $1 {[%emt 0:00:02]} 34. Nd3 {[%emt 0:00:55]} Rb3 {[%emt 0:00:23]} 35. Rc7 {[%emt 0:00:43] Threatens to win with Nc1.} Rxd3 {[%emt 0:00:11]} 36. Rxc2 {[%emt 0:00:01]} fxg4 {[%emt 0:00:30][%mdl 4096] Endgame KRB-KRN} 37. Kf2 {[%emt 0:00:28] [#]} Rb3 $1 {[%emt 0:05:08]} 38. Ke2 {[%emt 0:01:22] [#]} g3 {[%emt 0:01:17]} (38... h5 $1 $19 39. hxg4 hxg4) 39. Rc8+ $2 {[%emt 0:00:44][%mdl 8192] Now White is beyond hope.} (39. Kf3 $17) 39... Ke7 $19 {[%emt 0:00:04]} 40. Rc7+ {[%emt 0:00:35]} Kd6 {[%emt 0:00:10]} 41. Rc2 {[%emt 0:00:00]} h5 {[%emt 0:00:00]} 42. Rc8 $2 {[%emt 0:00:00]} (42. f5 gxf5 43. Kf3) 42... Rb2+ {[%emt 0:00:00] Black is clearly winning.} 43. Kf1 {[%emt 0:00:00]} b5 {[%emt 0:00:00][%cal Bb6b5,Bb5b4,Bb4b3][%mdl 32]} 44. Rf8 {[%emt 0:00:00]} Ke7 {[%emt 0:00:00]} 45. Rb8 {[%emt 0:00:00]} b4 {[%emt 0:00:00]} 46. Rb7+ {[%emt 0:00:00]} Ke6 {[%emt 0:00:00]} 47. Rb6+ {[%emt 0:00:00]} Kf5 {[%emt 0:00:00] ...Ne4 is the strong threat.} 48. Rb5 {[%emt 0:00:00]} b3 {[%emt 0:00:00] Weighted Error Value: White=0.54/Black=0.13 (very precise)} 0-1

[Event "BSV-SCK IM 2022"]
[Site "Berlin"]
[Date "2022.04.11"]
[Round "5.4"]
[White "Muse, Drazen"]
[Black "Mcgowan, Daniel"]
[Result "1-0"]
[ECO "C00"]
[WhiteElo "2325"]
[BlackElo "2101"]
[Annotator "RC"]
[PlyCount "119"]
[EventDate "2022.04.08"]
[EventType "tourn"]
[EventCountry "GER"]
[SourceTitle "playchess.com"]
[Source "ChessBase"]
[SourceQuality "1"]
[TimeControl "5400+30"]

1. e4 {[%emt 0:02:10]} e6 {[%emt 0:00:08]} 2. f4 {[%emt 0:00:17]} d5 {[%emt 0:00:36]} 3. e5 {[%emt 0:00:04]} c5 {[%emt 0:00:59]} 4. Nf3 {[%emt 0:00:05]} Nc6 {[%emt 0:01:00]} 5. c3 {[%emt 0:00:10]} g6 {[%emt 0:01:28]} 6. Na3 {[%emt 0:03:57]} a6 {[%emt 0:00:17]} 7. Nc2 {[%emt 0:00:12]} Bg7 {[%emt 0:03:57]} 8. d4 {[%emt 0:00:28]} cxd4 {[%emt 0:01:29]} 9. cxd4 {[%emt 0:00:49]} Nge7 {[%emt 0:00:50]} 10. Bd3 {[%emt 0:00:40]} Bd7 {[%emt 0:02:56]} 11. O-O {[%emt 0:08:19]} Qb6 {[%emt 0:05:34]} 12. b4 {[%emt 0:10:07]} O-O {[%emt 0:04:26]} 13. Bd2 {[%emt 0:04:42]} f6 {[%emt 0:02:34]} 14. Kh1 {[%emt 0:03:03]} Rac8 {[%emt 0:07:13]} 15. a4 {[%emt 0:01:51]} fxe5 {[%emt 0:04:27]} 16. fxe5 {[%emt 0:00:34]} Nf5 {[%emt 0:02:09]} 17. Qe2 {[%emt 0:05:43]} Qd8 {[%emt 0:05:51]} 18. g4 {[%emt 0:02:01]} Nh6 {[%emt 0:01:09]} 19. h3 {[%emt 0:04:01]} Nf7 {[%emt 0:01:35]} 20. b5 {[%emt 0:00:41]} Na5 {[%emt 0:01:09]} 21. Bb4 {[%emt 0:01:23]} Re8 {[%emt 0:00:32]} 22. bxa6 {[%emt 0:00:49]} bxa6 {[%emt 0:00:41]} 23. Bxa6 {[%emt 0:00:35]} Rb8 {[%emt 0:01:18]} 24. Bd3 {[%emt 0:01:02]} Bc6 {[%emt 0:01:42]} 25. Ra2 {[%emt 0:03:33]} Nc4 {[%emt 0:05:59]} 26. a5 {[%emt 0:00:58]} Bf8 {[%emt 0:01:45]} 27. Bxf8 {[%emt 0:08:04]} Rxf8 {[%emt 0:00:03]} 28. Ne3 {[%emt 0:00:13]} Ng5 {[%emt 0:06:17]} 29. Kh2 {[%emt 0:06:40]} Nxf3+ {[%emt 0:15:35]} 30. Rxf3 {[%emt 0:00:12]} Qg5 {[%emt 0:00:23]} 31. Rxf8+ {[%emt 0:00:44]} Rxf8 {[%emt 0:00:04]} 32. Ng2 {[%emt 0:00:26]} Qc1 {[%emt 0:05:42]} 33. Qc2 {[%emt 0:01:43]} Qg5 {[%emt 0:01:16]} 34. Qd1 {[%emt 0:01:29]} Qe7 {[%emt 0:03:07]} 35. a6 {[%emt 0:02:19]} Qa7 {[%emt 0:00:19]} 36. Be2 {[%emt 0:01:51]} Ra8 {[%emt 0:03:27]} 37. Nf4 {[%emt 0:01:20]} Qf7 {[%emt 0:01:19]} 38. Nd3 {[%emt 0:00:36]} Bb5 {[%emt 0:01:30]} 39. Qf1 {[%emt 0:01:35]} Rxa6 {[%emt 0:01:33]} 40. Rxa6 {[%emt 0:02:15]} Bxa6 {[%emt 0:00:16]} 41. Nc5 {[%emt 0:00:16]} Bb5 {[%emt 0:03:24]} 42. Kg3 {[%emt 0:07:07]} Qxf1 {[%emt 0:00:00]} 43. Bxf1 {[%emt 0:00:00]} Kf7 {[%emt 0:00:00]} 44. Bxc4 {[%emt 0:00:00]} Bxc4 {[%emt 0:00:00]} 45. g5 {[%emt 0:00:00]} Ke7 {[%emt 0:00:00]} 46. Kf4 {[%emt 0:00:00]} Bf1 {[%emt 0:00:00]} 47. h4 {[%emt 0:00:00]} Bh3 {[%emt 0:00:00]} 48. Ke3 {[%emt 0:00:00]} Bg4 {[%emt 0:00:00]} 49. Kd2 {[%emt 0:00:00]} Bh3 {[%emt 0:00:00]} 50. Kc3 {[%emt 0:00:00]} Ke8 {[%emt 0:00:00]} 51. Kb4 {[%emt 0:00:00]} Ke7 {[%emt 0:00:00]} 52. Ka5 {[%emt 0:00:00]} Ke8 {[%emt 0:00:00]} 53. Kb6 {[%emt 0:00:00]} Ke7 {[%emt 0:00:00]} 54. Kc7 {[%emt 0:00:00]} Bg4 {[%emt 0:00:00]} 55. Nd7 {[%emt 0:00:00]} Kf7 {[%emt 0:00:00]} 56. Nf6 {[%emt 0:00:00]} Bf5 {[%emt 0:00:00]} 57. Nxh7 {[%emt 0:00:00]} Kg7 {[%emt 0:00:00]} 58. Nf6 {[%emt 0:00:00]} Kf7 {[%emt 0:00:00]} 59. Kd6 {[%emt 0:00:00]} Kg7 {[%emt 0:00:00]} 60. Ke7 {[%emt 0:00:00]} 1-0